bitfinex/quotes_SOLUSD_20220228
["timestamp","ask_amount","ask_price","bid_price","bid_amount"]
[1646066676446,1.67819138,95.935,95.844,51.77961918]
[1646066676646,20.69256495,95.935,95.844,51.77961918]
[1646066676846,1.70996514,95.934,95.844,51.77961918]
[1646066677048,12.65,95.93,95.844,51.77961918]
[1646066677447,1.74451884,95.929,95.844,51.77961918]
[1646066677647,1.37664979,95.928,95.844,51.77961918]
[1646066677946,19.01437357,95.927,95.844,51.77961918]
[1646066678150,1.48778743,95.926,95.844,51.77961918]
[1646066678347,19.01437357,95.926,95.824,3.09832932]
[1646066678548,53.0527,95.925,95.824,3.09832932]
[1646066678747,12.65,95.91,95.803,2.81290314]
[1646066678949,1.40606819,95.909,95.815,3.671]
[1646066679146,43.93617357,95.909,95.815,3.671]
[1646066679347,3.95247332,95.908,95.816,46.17362436]
[1646066679547,21.27421804,95.908,95.816,46.17362436]
[1646066679748,21.27421804,95.908,95.817,2.61255665]
[1646066679946,19.01437357,95.907,95.817,2.61255665]
[1646066680148,1.35395768,95.906,95.816,46.17362436]
[1646066680346,20.36833125,95.906,95.816,46.17362436]
[1646066680548,1.82969392,95.905,95.816,46.17362436]
[1646066680751,20.84406749,95.905,95.816,46.17362436]
[1646066680947,1.41813585,95.904,95.816,46.17362436]
[1646066681149,12.65,95.9,95.815,3.671]
[1646066681449,1.76885176,95.899,95.815,3.671]
[1646066681650,1.64103953,95.898,95.815,3.671]
[1646066681849,7.30103953,95.898,95.815,3.671]
[1646066682048,19.01437357,95.897,95.815,55.71896509]
[1646066682249,1.75309767,95.896,95.815,3.671]
[1646066682448,4.172,95.895,95.772,2.96379308]
[1646066682649,12.65,95.88,95.751,48.8293]
[1646066682849,1.47171471,95.879,95.717,10.90672236]
[1646066683049,158.15,95.87,95.717,2.74435739]
[1646066683250,12.65,95.86,95.718,60.30547618]
[1646066683448,55.29134258,95.859,95.719,3.05413439]
[1646066683655,1.37405768,95.858,95.719,3.05413439]
[1646066683856,4.175,95.857,95.719,3.05413439]
[1646066684055,38.26485164,95.857,95.72,22.7747]
[1646066684355,34.4685391,95.856,95.721,2.6712172]
[1646066684555,2.55532413,95.854,95.721,2.6712172]
[1646066684756,12.65,95.84,95.721,2.6712172]
[1646066684956,10.05066196,95.838,95.721,65.3612172]
[1646066685156,8.49114234,95.838,95.722,2.57613234]
[1646066685357,8.49114234,95.838,95.723,6.0]
[1646066685556,8.49114234,95.838,95.725,3.10870184]
[1646066690086,10.08733834,95.838,95.725,3.10870184]
[1646066690284,26.49865331,95.837,95.725,3.10870184]
[1646066690485,26.49865331,95.837,95.696,24.9844]
[1646066690486,1.45664073,95.836,95.696,24.9844]
[1646066690685,4.176,95.835,95.696,24.9844]
[1646066690895,12.65,95.82,95.696,24.9844]
[1646066691085,55.89717313,95.819,95.696,24.9844]
[1646066691385,1.41678869,95.818,95.681,2.70368452]
[1646066691588,4.176,95.817,95.666,2.61232278]
[1646066691784,1.54878325,95.816,95.666,2.61232278]
[1646066692185,28.84929756,95.815,95.666,2.61232278]
[1646066692386,12.65,95.8,95.668,62.69]
[1646066692584,8.49114234,95.798,95.668,62.69]
[1646066692784,8.49114234,95.798,95.667,51.77475916]
[1646066692785,4.178,95.797,95.669,2.50866429]
[1646066692984,11.298,95.797,95.669,2.50866429]
[1646066693184,1.84504129,95.796,95.669,2.50866429]
[1646066693384,4.178,95.795,95.669,2.50866429]
[1646066693588,5.72624155,95.795,95.669,2.50866429]
[1646066693786,5.72624155,95.795,95.671,167.19]
[1646066693985,5.72624155,95.795,95.672,2.4384891]
[1646066694789,13.61671249,95.794,95.672,2.4384891]
[1646066694986,12.65,95.78,95.672,2.4384891]
[1646066695187,55.82237733,95.779,95.672,2.4384891]
[1646066695389,1.35154239,95.778,95.672,2.4384891]
[1646066695589,4.178,95.777,95.672,2.4384891]
[1646066695790,5.62990162,95.777,95.672,2.4384891]
[1646066696196,50.17312413,95.779,95.672,2.4384891]
[1646066696491,51.75681241,95.779,95.672,2.4384891]
[1646066697091,51.75681241,95.779,95.673,104.5]
[1646066697291,50.17312413,95.779,95.674,2.739926]
[1646066697892,4.178,95.778,95.667,51.77475916]
[1646066698091,4.178,95.778,95.668,2.7827421]
[1646066698292,4.178,95.778,95.672,167.19]
[1646066698594,47.6178,95.779,95.673,2.4648077]
[1646066699395,10.07340237,95.778,95.668,2.90936559]
[1646066699594,4.178,95.777,95.668,2.90936559]
[1646066700195,4.178,95.777,95.668,170.09936559]
[1646066700396,4.178,95.777,95.669,2.98655374]
[1646066700795,47.6178,95.779,95.672,2.68323184]
[1646066701796,12.65,95.78,95.672,2.68323184]
[1646066701998,4.178,95.797,95.672,2.68323184]
[1646066702797,7.97403195,95.796,95.672,2.68323184]
[1646066702997,4.178,95.795,95.672,2.68323184]
[1646066703799,7.97403195,95.796,95.672,2.68323184]
[1646066706505,34.69485782,95.821,95.693,167.19]
[1646066706701,34.69485782,95.821,95.694,2.89688065]
[1646066707104,23.6841,95.821,95.709,62.69]
[1646066707303,23.6841,95.821,95.732,167.19]
[1646066707708,23.6841,95.821,95.733,2.76255794]
[1646066708115,1.50559203,95.848,95.734,62.69]
[1646066708310,1.6215826,95.847,95.751,104.26255794]
[1646066708512,23.8573,95.848,95.763,104.26255794]
[1646066708713,1.96581847,95.847,95.752,62.69]
[1646066708916,1.96581847,95.847,95.75,12.65]
[1646066709118,4.71260768,95.847,95.727,2.74678921]
[1646066709313,27.76460953,95.846,95.72,12.65]
[1646066709512,10.73454361,95.845,95.72,12.65]
[1646066709713,12.65,95.83,95.712,62.69]
[1646066709915,1.60097218,95.829,95.713,24.1077]
[1646066710314,23.58960953,95.829,95.713,24.1077]
[1646066710515,4.39636407,95.828,95.713,24.1077]
[1646066710716,47.0406,95.827,95.713,24.1077]
[1646066710915,1.79389444,95.826,95.713,24.1077]
[1646066711315,20.84282032,95.826,95.713,24.1077]
[1646066711519,20.84282032,95.825,95.713,24.1077]
[1646066711818,5.8724406,95.824,95.701,24.2527]
[1646066712014,12.65,95.81,95.672,49.009]
[1646066712214,2.04142105,95.808,95.672,49.009]
[1646066712414,6.21742105,95.808,95.672,49.009]
[1646066712617,16.37251604,95.807,95.673,48.04620492]
[1646066712819,6.21755672,95.806,95.673,48.04620492]
[1646066713016,43.43289308,95.806,95.673,48.04620492]
[1646066713217,15.15331532,95.805,95.673,48.04620492]
[1646066713416,5.77997217,95.804,95.673,48.04620492]
[1646066713617,20.55051604,95.804,95.674,67.67595182]
[1646066713850,12.65,95.8,95.676,62.69]
[1646066714051,2.06197181,95.799,95.691,104.5]
[1646066714248,2.06197181,95.799,95.702,62.69]
[1646066715251,2.06197181,95.799,95.701,43.31860092]
[1646066715753,6.23797181,95.799,95.701,43.31860092]
[1646066716051,2.74678921,95.798,95.701,43.31860092]
[1646066716251,4.176,95.797,95.701,43.31860092]
[1646066716451,1.62768878,95.796,95.666,2.74678921]
[1646066716654,5.69834821,95.795,95.667,23.9527]
[1646066716851,8.44513742,95.795,95.667,23.9527]
[1646066717055,30.24129107,95.795,95.667,23.9527]
[1646066717251,4.41551167,95.794,95.667,23.9527]
[1646066717452,12.65,95.78,95.673,56.34542682]
[1646066717652,23.3719,95.779,95.62,12.65]
[1646066717854,23.3719,95.779,95.613,47.0645]
[1646066717855,1.96215409,95.778,95.613,47.0645]
[1646066718053,1.96215409,95.778,95.604,62.69]
[1646066718254,158.55,95.77,95.602,78.7328]
[1646066718553,158.55,95.77,95.603,59.75720899]
[1646066718554,170.8,95.76,95.603,59.75720899]
[1646066718751,5.82346272,95.759,95.603,59.75720899]
[1646066718952,90.93181381,95.759,95.603,59.75720899]
[1646066719153,25.18499837,95.758,95.603,59.75720899]
[1646066719353,6.2106215,95.757,95.603,59.75720899]
[1646066719555,1.9316958,95.739,95.603,59.75720899]
[1646066719853,1.96088545,95.729,95.603,59.75720899]
[1646066720056,158.15,95.72,95.603,59.75720899]
[1646066720254,12.65,95.71,95.542,79.764]
[1646066720555,0.4,95.69,95.501,62.67200324]
[1646066720756,1.97613409,95.679,95.529,2.74678921]
[1646066721055,1.62841137,95.677,95.51,12.65]
[1646066721256,4.184,95.676,95.517,45.87748825]
[1646066721457,24.3633,95.675,95.52,12.65]
[1646066721655,12.65,95.66,95.52,12.65]
[1646066721855,2.01737958,95.659,95.521,28.16138473]
[1646066722456,2.74678921,95.658,95.522,2.74678921]
[1646066723056,2.74678921,95.658,95.522,65.43678921]
[1646066723258,2.74678921,95.658,95.523,2.8649398]
[1646066723859,2.74678921,95.658,95.524,2.74678921]
[1646066724461,5.88392063,95.657,95.524,2.74678921]
[1646066724663,5.88392063,95.657,95.521,6.0]
[1646066724958,1.87432518,95.655,95.521,6.0]
[1646066725159,4.184,95.654,95.521,6.0]
[1646066725359,4.184,95.654,95.5,12.65]
[1646066725360,12.65,95.64,95.491,2.74678921]
[1646066725562,6.2316172,95.639,95.47,12.65]
[1646066725758,6.2316172,95.639,95.445,104.5]
[1646066725759,6.2316172,95.639,95.46,12.65]
[1646066725959,23.52948698,95.638,95.46,12.65]
[1646066726159,5.72393717,95.637,95.46,12.65]
[1646066726360,158.15,95.62,95.45,12.65]
[1646066726559,12.65,95.61,95.446,72.3898]
[1646066726759,12.65,95.6,95.446,72.3898]
[1646066726959,1.84414304,95.598,95.446,72.3898]
[1646066727161,4.186,95.597,95.446,72.3898]
[1646066727463,158.15,95.59,95.447,59.13957881]
[1646066727662,6.16533331,95.589,95.447,59.13957881]
[1646066727859,2.01859388,95.579,95.447,59.13957881]
[1646066728061,4.187,95.578,95.447,59.13957881]
[1646066728268,23.2342159,95.578,95.447,59.13957881]
[1646066728464,1.66981222,95.577,95.447,59.13957881]
[1646066728662,5.89590005,95.576,95.447,59.13957881]
[1646066728864,16.9791827,95.576,95.447,59.13957881]
[1646066729063,1.75551999,95.574,95.447,59.13957881]
[1646066729265,12.65,95.56,95.447,59.13957881]
[1646066729464,2.05972876,95.559,95.447,59.13957881]
[1646066729667,4.80651797,95.559,95.447,59.13957881]
[1646066729968,2.74678921,95.558,95.447,59.13957881]
[1646066730365,4.187,95.557,95.448,6.0]
[1646066730968,2.05972876,95.559,95.448,6.0]
[1646066732687,2.05972876,95.559,95.447,59.13957881]
[1646066733891,2.74678921,95.558,95.447,59.13957881]
[1646066734089,2.05972876,95.559,95.447,59.13957881]
[1646066734492,2.74678921,95.558,95.447,59.13957881]
[1646066734894,14.23239349,95.557,95.447,59.13957881]
[1646066735097,6.02266597,95.556,95.447,59.13957881]
[1646066735296,4.58245518,95.556,95.447,59.13957881]
[1646066735594,2.74678921,95.555,95.447,59.13957881]
[1646066735796,1.83566597,95.556,95.447,59.13957881]
[1646066736197,2.74678921,95.555,95.447,59.13957881]
[1646066737096,26.27627619,95.555,95.447,59.13957881]
[1646066737297,1.6557415,95.554,95.447,59.13957881]
[1646066737496,12.65,95.55,95.447,59.13957881]
[1646066737700,1.60395497,95.549,95.447,59.13957881]
[1646066738098,4.35074418,95.549,95.447,59.13957881]
[1646066738499,12.65,95.55,95.447,59.13957881]
[1646066738801,1.86101136,95.549,95.448,6.0]
[1646066740001,12.65,95.55,95.448,6.0]
[1646066740200,2.01390025,95.549,95.448,6.0]
[1646066740398,2.01390025,95.549,95.449,62.69]
[1646066741098,2.01390025,95.549,95.45,104.5]
[1646066741298,2.74678921,95.548,95.448,6.0]
[1646066741798,1.52459968,95.549,95.448,6.0]
[1646066742703,1.52459968,95.549,95.447,59.13957881]
[1646066742704,1.96320125,95.548,95.447,59.13957881]
[1646066742899,4.187,95.547,95.447,59.13957881]
[1646066743100,27.71648698,95.547,95.447,59.13957881]
[1646066743299,1.58736278,95.546,95.447,59.13957881]
[1646066743499,4.187,95.545,95.447,59.13957881]
[1646066743699,29.36109581,95.545,95.447,59.13957881]
[1646066743999,2.04354198,95.544,95.447,59.13957881]
[1646066744198,12.65,95.53,95.447,59.13957881]
[1646066744600,1.91942164,95.529,95.447,59.13957881]
[1646066744801,4.66621085,95.529,95.447,59.13957881]
[1646066745002,1.91942164,95.529,95.447,59.13957881]
[1646066745403,12.65,95.53,95.447,59.13957881]
[1646066745602,1.49237258,95.529,95.447,59.13957881]
[1646066748705,2.74678921,95.528,95.447,59.13957881]
[1646066749104,12.65,95.53,95.447,59.13957881]
[1646066749305,2.0672391,95.54,95.476,9.14008943]
[1646066749504,2.0672391,95.54,95.477,48.9332426]
[1646066753506,2.74678921,95.563,95.477,48.9332426]
[1646066753507,2.74678921,95.563,95.482,62.69]
[1646066753707,23.52948698,95.572,95.482,62.69]
[1646066753908,47.5501,95.581,95.482,62.69]
[1646066754408,47.5501,95.581,95.483,104.5]
[1646066754808,47.5501,95.581,95.48,12.65]
[1646066755007,4.59165772,95.572,95.48,12.65]
[1646066755207,4.59165772,95.572,95.477,48.9332426]
[1646066755411,2.74678921,95.571,95.476,8.943e-05]
[1646066755610,12.65,95.56,95.476,8.943e-05]
[1646066755807,26.55909472,95.559,95.476,8.943e-05]
[1646066756009,1.61692141,95.558,95.476,8.943e-05]
[1646066756208,21.01750331,95.558,95.476,8.943e-05]
[1646066756414,25.35482331,95.557,95.476,8.943e-05]
[1646066756610,1.89880428,95.556,95.476,8.943e-05]
[1646066756810,28.17508047,95.556,95.476,8.943e-05]
[1646066757109,26.27627619,95.555,95.476,8.943e-05]
[1646066757310,1.54030268,95.554,95.476,8.943e-05]
[1646066757509,12.65,95.55,95.476,8.943e-05]
[1646066758110,2.74678921,95.549,95.476,8.943e-05]
[1646066758310,24.0387,95.548,95.476,8.943e-05]
[1646066758910,4.187,95.558,95.476,8.943e-05]
[1646066759111,2.74678921,95.564,95.476,8.943e-05]
[1646066760311,1.72616778,95.572,95.476,8.943e-05]
[1646066760515,1.72616778,95.572,95.477,51.35502865]
[1646066760711,1.72616778,95.572,95.478,104.5]
[1646066761212,2.74678921,95.589,95.481,167.19]
[1646066761413,2.74678921,95.589,95.48,2.85208233]
[1646066761414,2.74678921,95.589,95.491,167.19]
[1646066761616,4.187,95.612,95.493,167.19]
[1646066761813,48.778,95.618,95.495,167.19]
[1646066762113,48.778,95.618,95.511,167.19]
[1646066762313,48.778,95.618,95.512,46.7617094]
[1646066762314,5.75591826,95.617,95.512,46.7617094]
[1646066766521,48.778,95.618,95.512,46.7617094]
[1646066766522,1.68973357,95.615,95.512,46.7617094]
[1646066766918,12.65,95.61,95.512,46.7617094]
[1646066767118,6.0899995,95.609,95.512,46.7617094]
[1646066767619,28.62753207,95.609,95.512,46.7617094]
[1646066767819,1.71971239,95.608,95.512,46.7617094]
[1646066768220,1.71971239,95.608,95.494,49.1151]
[1646066768422,26.72353257,95.607,95.494,49.1151]
[1646066768619,1.79781244,95.606,95.46,12.65]
[1646066768819,4.186,95.605,95.45,12.65]
[1646066769019,28.78738688,95.605,95.45,12.65]
[1646066769222,1.95183368,95.604,95.477,43.91728909]
[1646066769421,12.65,95.59,95.477,43.91728909]
[1646066769620,5.68920365,95.589,95.477,43.91728909]
[1646066769820,1.66243251,95.587,95.477,43.91728909]
[1646066770019,5.82553416,95.586,95.477,43.91728909]
[1646066770220,28.36306673,95.586,95.477,43.91728909]
[1646066770422,1.9461575,95.584,95.477,43.91728909]
[1646066770719,12.65,95.57,95.451,49.0299]
[1646066770922,29.97395558,95.569,95.451,49.0299]
[1646066771120,29.97395558,95.569,95.43,12.65]
[1646066771121,1.76418681,95.568,95.42,12.65]
[1646066771320,4.187,95.567,95.411,138.1635]
[1646066771522,5.95973288,95.567,95.412,47.4528]
[1646066771720,22.53753257,95.566,95.446,56.43432937]
[1646066771920,6.2446275,95.565,95.446,56.43432937]
[1646066772119,12.65,95.55,95.461,45.66962717]
[1646066772320,2.06561038,95.549,95.412,47.4528]
[1646066772528,24.60314295,95.549,95.417,104.5]
[1646066772820,1.64409404,95.548,95.422,62.69]
[1646066773220,22.53753257,95.547,95.412,47.4528]
[1646066773424,6.04052898,95.546,95.445,46.42261343]
[1646066773740,1.74089564,95.545,95.412,47.4528]
[1646066773927,105.0,95.543,95.412,47.4528]
[1646066774124,12.65,95.53,95.411,75.4735]
[1646066774323,30.58498236,95.529,95.379,47.5326]
[1646066774524,1.75831441,95.527,95.324,81.87338285]
[1646066774725,158.15,95.52,95.35,12.65]
[1646066774924,12.65,95.51,95.34,103.23202214]
[1646066775125,54.95800894,95.509,95.341,65.10975188]
[1646066775328,54.95800894,95.509,95.34,103.23202214]
[1646066775329,1.9273629,95.508,95.352,104.5]
[1646066775523,4.191,95.507,95.369,62.69]
[1646066775723,4.191,95.507,95.374,48.18326586]
[1646066775927,2.74678921,95.506,95.374,48.18326586]
[1646066776124,4.191,95.505,95.375,6.0]
[1646066776328,12.65,95.49,95.375,6.0]
[1646066776523,12.65,95.49,95.374,48.18326586]
[1646066776524,6.60359277,95.488,95.374,48.18326586]
[1646066776722,4.191,95.487,95.374,48.18326586]
[1646066776924,29.24186591,95.487,95.374,48.18326586]
[1646066777123,1.67012923,95.486,95.374,48.18326586]
[1646066777323,4.191,95.485,95.374,48.18326586]
[1646066777523,2.09685297,95.469,95.374,48.18326586]
[1646066777726,2.09685297,95.469,95.375,104.5]
[1646066777926,4.05986617,95.469,95.375,104.5]
[1646066778325,6.80665538,95.469,95.374,48.18326586]
[1646066778726,4.70980241,95.469,95.375,6.0]
[1646066779527,52.15360241,95.469,95.375,6.0]
[1646066779727,1.66656381,95.468,95.375,6.0]
[1646066780727,50.19058921,95.469,95.382,104.5]
[1646066780928,0.4,95.55,95.391,167.19]
[1646066780929,12.65,95.49,95.391,167.19]
[1646066781133,4.30518411,95.498,95.391,167.19]
[1646066781532,1.5583949,95.498,95.391,167.19]
[1646066781731,6.7212012,95.496,95.393,104.5]
[1646066781933,45.8101,95.495,95.393,104.5]
[1646066782130,1.64670102,95.494,95.393,104.5]
[1646066782332,4.39349023,95.494,95.393,104.5]
[1646066782733,4.39349023,95.494,95.4,167.19]
[1646066782934,1.64670102,95.494,95.4,62.69]
[1646066783132,2.74678921,95.493,95.4,167.19]
[1646066783334,27.79765512,95.493,95.392,52.37097919]
[1646066783533,12.65,95.49,95.392,52.37097919]
[1646066783736,2.02259853,95.489,95.392,52.37097919]
[1646066785334,2.74678921,95.488,95.392,52.37097919]
[1646066786435,25.05086591,95.487,95.392,52.37097919]
[1646066786935,4.73883948,95.486,95.392,52.37097919]
[1646066787336,4.79449103,95.485,95.392,52.37097919]
[1646066787539,12.65,95.48,95.392,52.37097919]
[1646066787739,1.89614896,95.479,95.392,52.37097919]
[1646066787942,4.64293817,95.479,95.392,52.37097919]
[1646066788143,24.3626,95.478,95.392,52.37097919]
[1646066788444,4.72633078,95.477,95.392,52.37097919]
[1646066788863,2.74678921,95.476,95.392,52.37097919]
[1646066789061,27.79765512,95.476,95.346,4.191]
[1646066789261,5.83507134,95.475,95.341,46.3776]
[1646066789462,2.05793985,95.459,95.341,46.3776]
[1646066789662,1.58062049,95.457,95.341,46.3776]
[1646066790062,1.67524326,95.455,95.342,46.07510387]
[1646066790262,1.88403496,95.439,95.342,46.07510387]
[1646066790461,1.61057561,95.438,95.342,46.07510387]
[1646066790862,4.35736482,95.438,95.343,6.0]
[1646066791063,2.74678921,95.437,95.342,46.07510387]
[1646066792465,25.05086591,95.436,95.342,46.07510387]
[1646066792664,1.95516686,95.435,95.342,46.07510387]
[1646066792863,20.4208332,95.435,95.324,79.4525]
[1646066793064,29.72416365,95.434,95.324,79.4525]
[1646066793265,12.65,95.42,95.324,79.4525]
[1646066793464,48.44771281,95.419,95.324,79.4525]
[1646066793668,1.8846764,95.418,95.324,79.4525]
[1646066793866,1.8846764,95.418,95.325,52.45700033]
[1646066794070,45.40094865,95.418,95.325,52.45700033]
[1646066794267,19.39764825,95.417,95.325,52.45700033]
[1646066794468,1.65950526,95.416,95.325,52.45700033]
[1646066794867,1.6491068,95.415,95.325,52.45700033]
[1646066795468,1.6491068,95.415,95.326,104.5]
[1646066795867,1.6491068,95.415,95.325,52.45700033]
[1646066796070,25.05086591,95.431,95.326,62.69]
[1646066796272,25.05086591,95.431,95.328,62.69]
[1646066796478,2.74678921,95.452,95.336,62.69]
[1646066796682,1.95613311,95.455,95.343,167.19]
[1646066797078,4.55983894,95.468,95.344,2.79813754]
[1646066797279,4.192,95.479,95.345,167.19]
[1646066797481,22.8911,95.487,95.346,2.25413816]
[1646066797680,5.8197367,95.486,95.361,104.5]
[1646066797880,4.192,95.486,95.363,167.19]
[1646066798081,4.192,95.486,95.364,2.38690335]
[1646066798280,7.8673886,95.485,95.366,167.19]
[1646066798481,4.191,95.484,95.37,167.19]
[1646066798687,31.3452056,95.484,95.365,45.67419597]
[1646066798886,12.65,95.47,95.365,45.67419597]
[1646066799188,1.84675679,95.468,95.365,45.67419597]
[1646066799587,25.46951952,95.467,95.365,45.67419597]
[1646066799785,6.03600807,95.466,95.365,45.67419597]
[1646066799985,31.50552759,95.466,95.365,45.67419597]
[1646066800186,4.49596061,95.465,95.366,62.69]
[1646066800385,4.192,95.464,95.366,62.69]
[1646066800589,12.65,95.46,95.365,45.67419597]
[1646066800885,1.63952298,95.459,95.365,45.67419597]
[1646066801889,2.74678921,95.458,95.365,45.67419597]
[1646066802289,23.4395,95.457,95.365,45.67419597]
[1646066802488,1.68948769,95.456,95.365,45.67419597]
[1646066802689,4.4362769,95.456,95.365,45.67419597]
[1646066803188,5.12059939,95.454,95.365,45.67419597]
[1646066803388,3.54869199,95.439,95.365,45.67419597]
[1646066804891,3.54869199,95.439,95.332,47.5746]
[1646066804892,2.74678921,95.438,95.332,47.5746]
[1646066805093,4.72230023,95.438,95.332,47.5746]
[1646066805293,8.91430023,95.438,95.332,47.5746]
[1646066805491,2.74678921,95.437,95.332,47.5746]
[1646066805893,2.74678921,95.437,95.333,47.73400058]
[1646066807192,25.46951952,95.437,95.333,47.73400058]
[1646066807399,1.72877782,95.436,95.333,47.73400058]
[1646066807601,4.192,95.435,95.333,47.73400058]
[1646066807801,6.93878921,95.435,95.333,47.73400058]
[1646066808101,2.74678921,95.434,95.333,47.73400058]
[1646066808302,12.65,95.42,95.333,47.73400058]
[1646066808501,29.54892386,95.419,95.333,47.73400058]
[1646066808706,1.53610295,95.418,95.333,47.73400058]
[1646066808900,4.28289216,95.418,95.333,47.73400058]
[1646066809302,2.74678921,95.417,95.333,47.73400058]
[1646066812203,22.72273031,95.416,95.302,23.2593]
[1646066812504,1.56264923,95.415,95.302,23.2593]
[1646066812702,4.194,95.414,95.302,23.2593]
[1646066812904,29.66351952,95.414,95.302,23.2593]
[1646066813104,12.65,95.4,95.303,49.59554513]
[1646066813303,3.42454537,95.399,95.301,4.194]
[1646066813504,4.195,95.398,95.301,4.194]
[1646066813704,28.51893616,95.398,95.301,4.194]
[1646066813907,1.66110297,95.397,95.301,4.194]
[1646066814106,1.66110297,95.397,95.23,1.718959]
[1646066814107,169.07670024,95.389,95.23,1.718959]
[1646066814308,104.5,95.377,95.231,58.42966064]
[1646066814506,1.73655494,95.369,95.231,58.42966064]
[1646066814705,12.65,95.36,95.231,58.42966064]
[1646066814908,7.93722324,95.359,95.231,58.42966064]
[1646066815121,104.5,95.358,95.231,58.42966064]
[1646066815320,0.4,95.35,95.23,1.718959]
[1646066815519,62.69,95.356,95.015,32.2]
[1646066815520,0.4,95.299,95.133,72.6903]
[1646066815721,12.65,95.29,95.133,72.6903]
[1646066815927,170.8,95.28,95.133,72.6903]
[1646066816119,170.8,95.28,95.11,71.6306]
[1646066816120,6.2198443,95.279,95.11,71.6306]
[1646066816321,158.15,95.27,95.111,62.08317791]
[1646066816520,12.65,95.26,95.111,62.08317791]
[1646066816725,3.76278375,95.259,95.113,167.19]
[1646066816922,3.76278375,95.259,95.13,2.74678921]
[1646066817120,3.76278375,95.259,95.131,44.79395045]
[1646066817320,30.23618618,95.258,95.132,4.2]
[1646066817520,6.00735868,95.257,95.131,44.79395045]
[1646066817721,36.24354486,95.257,95.131,44.79395045]
[1646066817921,32.08323415,95.256,95.132,4.2]
[1646066818121,1.72445463,95.255,95.132,4.2]
[1646066818323,12.65,95.24,95.132,2.91173992]
[1646066818522,6.70947713,95.239,95.132,2.91173992]
[1646066818723,6.70947713,95.239,95.133,6.0]
[1646066818924,1.58887774,95.239,95.134,108.702]
[1646066819125,15.8661,95.26,95.134,108.702]
[1646066819126,2.74678921,95.265,95.137,62.69]
[1646066819324,12.65,95.26,95.144,104.5]
[1646066819526,12.65,95.27,95.144,107.37613077]
[1646066819727,1.59433719,95.269,95.145,2.54965241]
[1646066819923,1.59433719,95.269,95.149,62.69]
[1646066820124,1.59433719,95.269,95.15,6.47416987]
[1646066820322,1.86557164,95.269,95.15,13.98416987]
[1646066820522,1.86557164,95.269,95.15,16.73095908]
[1646066820722,1.86557164,95.269,95.15,28.02245908]
[1646066820922,12.65,95.27,95.15,28.02245908]
[1646066820923,12.65,95.27,95.151,68.03132687]
[1646066821124,12.65,95.27,95.154,104.5]
[1646066821323,12.65,95.27,95.156,104.5]
[1646066821622,12.65,95.27,95.155,6.42055671]
[1646066821623,12.65,95.27,95.164,104.5]
[1646066821824,12.65,95.27,95.171,62.69]
[1646066822023,12.65,95.27,95.175,62.69]
[1646066822225,12.65,95.27,95.176,2.33972113]
[1646066822423,12.65,95.27,95.176,5.08651034]
[1646066822828,12.65,95.27,95.177,2.74678921]
[1646066823433,12.65,95.29,95.177,2.74678921]
[1646066823728,12.65,95.29,95.177,107.24678921]
[1646066823929,12.65,95.29,95.178,2.49125817]
[1646066824128,12.65,95.29,95.179,108.7]
[1646066824628,12.65,95.29,95.183,167.19]
[1646066824833,22.9467,95.318,95.193,167.19]
[1646066825032,2.03477745,95.316,95.194,2.60333569]
[1646066825232,2.03477745,95.316,95.194,111.30233569]
[1646066825432,2.03477745,95.316,95.194,108.699]
[1646066825634,13.8096178,95.315,95.195,44.9647246]
[1646066825832,12.65,95.3,95.195,44.9647246]
[1646066826033,1.8119779,95.299,95.195,44.9647246]
[1646066826233,22.31696564,95.299,95.195,44.9647246]
[1646066826434,1.49958848,95.298,95.195,44.9647246]
[1646066826834,4.24637769,95.298,95.195,44.9647246]
[1646066827033,2.74678921,95.297,95.195,44.9647246]
[1646066828439,2.74678921,95.297,95.196,167.19]
[1646066828634,2.74678921,95.297,95.196,176.07]
[1646066828838,2.74678921,95.297,95.196,71.57]
[1646066829039,2.74678921,95.297,95.196,62.69]
[1646066829236,2.74678921,95.297,95.195,44.9647246]
[1646066829436,12.65,95.29,95.195,44.9647246]
[1646066829637,1.93637376,95.289,95.195,44.9647246]
[1646066829941,4.68316297,95.289,95.195,44.9647246]
[1646066830137,2.74678921,95.288,95.195,44.9647246]